[Event "2nd Irena Warakomska Memorial-A"]
[Site "Suwalki"]
[Date "2018.08.06"]
[Round "7"]
[White "Debarshi, Mukherjee"]
[Black "Walkusz, Witoslaw"]
[Result "1-0"]
[ECO "D85"]
[WhiteElo "2308"]
[BlackElo "2121"]
[Annotator "NA"]
[PlyCount "59"]
[EventDate "2018.08.01"]
[EventType "swiss"]
[EventCountry "POL"]
[SourceTitle "playchess.com"]
[Source "ChessBase"]
[SourceQuality "1"]
[TimeControl "40/5400+30:1800+30"]

1. d4 {[%emt 0:00:29]} Nf6 {[%emt 0:00:00]} 2. c4 {[%emt 0:00:05]} g6 {[%emt 0:00:00]} 3. Nc3 {[%emt 0:00:06]} d5 {[%emt 0:00:00]} 4. cxd5 {[%emt 0:00:06]} Nxd5 {[%emt 0:00:02]} 5. e4 {[%emt 0:00:07]} Nxc3 {[%emt 0:00:06]} 6. bxc3 {[%emt 0:00:02]} Bg7 {[%emt 0:00:08]} 7. Nf3 {[%emt 0:00:07]} O-O {[%emt 0:00:18]} 8. Be2 {[%emt 0:00:14]} c5 {[%emt 0:00:13]} 9. O-O {[%emt 0:00:06]} Nc6 {[%emt 0:03:29]} 10. Be3 {[%emt 0:00:54]} cxd4 {[%emt 0:05:49]} 11. cxd4 {[%emt 0:00:02]} e6 {[%emt 0:00:12]} 12. Rc1 {[%emt 0:05:56]} Bd7 {[%emt 0:12:08]} 13. Qd2 {[%emt 0:06:51]} Re8 {[%emt 0:14:11]} 14. Bg5 {[%emt 0:12:49]} f6 {[%emt 0:06:08]} 15. Bh6 {[%emt 0:00:09]} Rc8 {[%emt 0:10:54]} 16. Bxg7 {[%emt 0:06:56]} Kxg7 {[%emt 0:00:01]} 17. Rfd1 {[%emt 0:00:39]} Qe7 {[%emt 0:09:59]} 18. h4 {[%emt 0:04:46]} Red8 {[%emt 0:09:41]} 19. h5 {[%emt 0:05:47]} gxh5 {[%emt 0:04:57]} 20. Qb2 {[%emt 0:12:31]} Be8 {[%emt 0:08:32]} 21. d5 {[%emt 0:03:12]} exd5 {[%emt 0:01:17]} 22. exd5 {[%emt 0:00:08]} Qb4 {[%emt 0:04:47]} 23. Qa1 {[%emt 0:02:32]} Na5 {[%emt 0:00:58]} 24. Nd4 {[%emt 0:10:34]} Bd7 {[%emt 0:01:55]} 25. Bxh5 {[%emt 0:00:20]} Rc4 {[%emt 0:02:08]} 26. Rxc4 {[%emt 0:02:14]} Qxc4 {[%emt 0:00:17]} 27. Re1 {[%emt 0:02:52]} Qxd5 {[%emt 0:00:55]} 28. Re7+ {[%emt 0:00:09]} Kh6 {[%emt 0:00:52]} 29. Ne6 {[%emt 0:05:21]} Qe5 {[%emt 0:01:33]} 30. Qxe5 {[%emt 0:00:28]} 1-0

[Event "2nd Irena Warakomska Memorial-A"]
[Site "Suwalki"]
[Date "2018.08.06"]
[Round "7"]
[White "Schippers, Maurice"]
[Black "Dmochowska, Agnieszka"]
[Result "1-0"]
[ECO "B68"]
[WhiteElo "2303"]
[BlackElo "2096"]
[Annotator "NA"]
[PlyCount "43"]
[EventDate "2018.08.01"]
[EventType "swiss"]
[EventCountry "POL"]
[SourceTitle "playchess.com"]
[Source "ChessBase"]
[SourceQuality "1"]
[TimeControl "40/5400+30:1800+30"]

1. e4 c5 2. Nf3 Nc6 3. d4 cxd4 4. Nxd4 Nf6 5. Nc3 d6 6. Bg5 e6 7. Qd2 a6 8. O-O-O Be7 9. f4 Bd7 10. Nf3 b5 11. e5 b4 12. exf6 bxc3 13. Qxc3 gxf6 14. Bh4 d5 15. Kb1 a5 16. f5 Rc8 17. fxe6 fxe6 18. Nd4 Ne5 19. Qg3 Ng6 20. Bd3 Kf7 21. Rhf1 Qc7 22. Bxf6 1-0

[Event "2nd Irena Warakomska Memorial-A"]
[Site "Suwalki"]
[Date "2018.08.06"]
[Round "7"]
[White "Goluch, Piotr"]
[Black "Socko, Monika"]
[Result "1/2-1/2"]
[ECO "B12"]
[WhiteElo "2301"]
[BlackElo "2466"]
[Annotator "ChessBase"]
[PlyCount "139"]
[EventDate "2018.08.01"]
[EventType "swiss"]
[EventCountry "POL"]
[SourceTitle "playchess.com"]
[Source "ChessBase"]
[SourceQuality "1"]
[TimeControl "40/5400+30:1800+30"]

1. e4 {[%emt 0:00:00]} c6 {[%emt 0:00:00]} 2. d4 {[%emt 0:00:56]} d5 {[%emt 0:00:00]} 3. e5 {[%emt 0:00:04]} Bf5 {[%emt 0:00:00]} 4. h4 {[%emt 0:00:04]} h5 {[%emt 0:00:00]} 5. Bd3 {[%emt 0:00:04]} Bxd3 {[%emt 0:00:23]} 6. Qxd3 {[%emt 0:00:06]} Qa5+ {[%emt 0:01:46]} 7. Nd2 {[%emt 0:04:51]} e6 {[%emt 0:00:42]} 8. Ngf3 {[%emt 0:02:01]} Qa6 {[%emt 0:03:04]} 9. c4 {[%emt 0:02:08]} Ne7 {[%emt 0:02:50]} 10. O-O {[%emt 0:15:18]} Nd7 {[%emt 0:00:40]} 11. a3 {[%emt 0:11:54]} Nf5 {[%emt 0:02:16]} 12. Qc2 {[%emt 0:00:34]} Be7 {[%emt 0:01:27]} 13. g3 {[%emt 0:01:19]} dxc4 {[%emt 0:02:04]} 14. Nxc4 {[%emt 0:00:21]} Nb6 {[%emt 0:02:24]} 15. Ne3 {[%emt 0:03:03]} Nxe3 {[%emt 0:01:26]} 16. Bxe3 {[%emt 0:00:25]} Qc4 {[%emt 0:01:05]} 17. Rac1 {[%emt 0:01:45]} Qxc2 {[%emt 0:00:56]} 18. Rxc2 {[%emt 0:00:02]} Nd5 {[%emt 0:01:19]} 19. Nd2 {[%emt 0:02:30]} f6 {[%emt 0:02:28]} 20. exf6 {[%emt 0:00:06]} gxf6 {[%emt 0:00:59]} 21. Re1 {[%emt 0:03:17]} Rd8 {[%emt 0:02:51]} 22. Nc4 {[%emt 0:02:48]} Kf7 {[%emt 0:00:52]} 23. Bc1 {[%emt 0:00:13]} Rhe8 {[%emt 0:00:50]} 24. Na5 {[%emt 0:07:54]} Rd7 {[%emt 0:00:23]} 25. Nb3 {[%emt 0:00:03]} Nc7 {[%emt 0:03:55]} 26. Be3 {[%emt 0:01:27]} Rd5 {[%emt 0:02:26]} 27. Nc1 {[%emt 0:04:33]} Rd7 {[%emt 0:03:09]} 28. Ne2 {[%emt 0:08:01]} Nd5 {[%emt 0:00:26]} 29. Bc1 {[%emt 0:00:06]} Bf8 {[%emt 0:02:32]} 30. f3 {[%emt 0:03:07]} f5 {[%emt 0:05:55]} 31. Kg2 {[%emt 0:02:06]} Bg7 {[%emt 0:03:46]} 32. Kh3 {[%emt 0:04:21]} Rh8 {[%emt 0:04:09]} 33. Bg5 {[%emt 0:04:49]} Nc7 {[%emt 0:03:56]} 34. Rd2 {[%emt 0:00:18]} Nb5 {[%emt 0:01:23]} 35. Red1 {[%emt 0:00:06]} Nc7 {[%emt 0:02:00]} 36. Rd3 {[%emt 0:01:23]} Nd5 {[%emt 0:00:39]} 37. g4 {[%emt 0:02:45]} Bf6 {[%emt 0:01:53]} 38. Bxf6 {[%emt 0:00:17]} hxg4+ {[%emt 0:10:37]} 39. fxg4 {[%emt 0:00:06]} fxg4+ {[%emt 0:00:19]} 40. Kxg4 {[%emt 0:00:00]} Nxf6+ {[%emt 0:00:00]} 41. Kh3 {[%emt 0:00:15]} Rd5 {[%emt 0:06:33]} 42. Rf1 {[%emt 0:01:35]} Rb5 {[%emt 0:02:02]} 43. Ng3 {[%emt 0:05:45]} Ke7 {[%emt 0:02:38]} 44. Rdf3 {[%emt 0:04:50]} Rh6 {[%emt 0:00:53]} 45. R1f2 {[%emt 0:02:51]} Rg6 {[%emt 0:03:01]} 46. b4 {[%emt 0:02:32]} Rd5 {[%emt 0:02:56]} 47. Rf4 {[%emt 0:03:11]} a5 {[%emt 0:02:36]} 48. Ne4 {[%emt 0:06:44]} Nxe4 {[%emt 0:02:19]} 49. Rxe4 {[%emt 0:00:02]} axb4 {[%emt 0:01:07]} 50. axb4 {[%emt 0:00:01]} Rb5 {[%emt 0:02:01]} 51. Rb2 {[%emt 0:00:12]} Rf5 {[%emt 0:01:30]} 52. Rb3 {[%emt 0:03:43]} Rf1 {[%emt 0:06:04]} 53. Rg3 {[%emt 0:03:30]} Rgf6 {[%emt 0:03:58]} 54. Rg7+ {[%emt 0:00:31]} Kd6 {[%emt 0:00:01]} 55. Rxb7 {[%emt 0:01:59]} Rg6 {[%emt 0:00:07]} 56. Kh2 {[%emt 0:02:03]} Rf2+ {[%emt 0:00:04]} 57. Kh3 {[%emt 0:00:31]} Rf3+ {[%emt 0:00:49]} 58. Kh2 {[%emt 0:00:05]} Kd5 {[%emt 0:03:53]} 59. Re5+ {[%emt 0:00:01]} Kxd4 {[%emt 0:00:04]} 60. Rg5 {[%emt 0:00:04]} Rxg5 {[%emt 0:01:59]} 61. hxg5 {[%emt 0:00:02]} Rf5 {[%emt 0:00:06]} 62. Rg7 {[%emt 0:01:29]} e5 {[%emt 0:02:17]} 63. Kg3 {[%emt 0:01:08]} e4 {[%emt 0:00:38]} 64. Kg4 {[%emt 0:00:07]} Re5 {[%emt 0:03:48]} 65. Rd7+ {[%emt 0:04:22]} Kc4 {[%emt 0:00:52]} 66. Kf4 {[%emt 0:00:43]} Re8 {[%emt 0:01:54]} 67. Ke3 {[%emt 0:00:24]} Rg8 {[%emt 0:01:47]} 68. Rd6 {[%emt 0:00:12]} Rxg5 {[%emt 0:00:40]} 69. Rxc6+ {[%emt 0:00:14]} Kxb4 {[%emt 0:00:05]} 70. Kxe4 {[%emt 0:00:05]} 1/2-1/2

[Event "2nd Irena Warakomska Memorial-A"]
[Site "Suwalki"]
[Date "2018.08.06"]
[Round "7"]
[White "Paszewski, Mateusz"]
[Black "Teclaf, Pawel"]
[Result "1/2-1/2"]
[ECO "B23"]
[WhiteElo "2274"]
[BlackElo "2362"]
[Annotator "NA"]
[PlyCount "153"]
[EventDate "2018.08.01"]
[EventType "swiss"]
[EventCountry "POL"]
[SourceTitle "playchess.com"]
[Source "ChessBase"]
[SourceQuality "1"]
[TimeControl "40/5400+30:1800+30"]

1. e4 {[%emt 0:00:40]} c5 {[%emt 0:00:00]} 2. Nc3 {[%emt 0:00:03]} a6 {[%emt 0:00:00]} 3. g3 {[%emt 0:03:45]} b5 {[%emt 0:09:31]} 4. Bg2 {[%emt 0:00:17]} Bb7 {[%emt 0:01:57]} 5. d3 {[%emt 0:00:06]} e6 {[%emt 0:02:47]} 6. Nh3 {[%emt 0:01:08]} Nf6 {[%emt 0:17:04]} 7. O-O {[%emt 0:00:30]} b4 {[%emt 0:04:07]} 8. Ne2 {[%emt 0:01:29]} d5 {[%emt 0:02:49]} 9. Nef4 {[%emt 0:08:09]} dxe4 {[%emt 0:05:42]} 10. Ng5 {[%emt 0:00:56]} Be7 {[%emt 0:06:43]} 11. Nxe4 {[%emt 0:16:28]} Nxe4 {[%emt 0:02:31]} 12. Bxe4 {[%emt 0:04:32]} Bxe4 {[%emt 0:04:22]} 13. dxe4 {[%emt 0:00:14]} O-O {[%emt 0:03:58]} 14. Qg4 {[%emt 0:02:53]} Qd4 {[%emt 0:02:41]} 15. Qe2 {[%emt 0:17:00]} Rd8 {[%emt 0:01:42]} 16. Kg2 {[%emt 0:00:58]} Nc6 {[%emt 0:03:55]} 17. f3 c4 18. c3 {[%emt 0:13:05]} bxc3 {[%emt 0:06:55]} 19. Be3 {[%emt 0:00:05]} Qe5 {[%emt 0:02:22]} 20. bxc3 g5 21. Nh3 {[%emt 0:06:33]} Qxc3 {[%emt 0:04:40]} 22. Rac1 {[%emt 0:00:24]} Qd3 {[%emt 0:00:28]} 23. Qxd3 {[%emt 0:02:02]} Rxd3 {[%emt 0:00:05]} 24. Bxg5 {[%emt 0:00:05]} Bxg5 {[%emt 0:00:52]} 25. Nxg5 {[%emt 0:00:01]} c3 {[%emt 0:01:04]} 26. Nh3 {[%emt 0:02:22]} Nd4 {[%emt 0:03:54]} 27. Nf4 {[%emt 0:06:43]} Rd2+ {[%emt 0:01:51]} 28. Rf2 {[%emt 0:00:08]} Rc8 {[%emt 0:00:09]} 29. g4 {[%emt 0:03:49]} Rc4 {[%emt 0:01:30]} 30. Kf1 {[%emt 0:03:31]} Rb2 {[%emt 0:02:36]} 31. Nd3 {[%emt 0:01:51]} Rb5 {[%emt 0:00:21]} 32. Ke1 {[%emt 0:01:25]} Ra5 {[%emt 0:01:21]} 33. Nf4 {[%emt 0:01:02]} c2 {[%emt 0:01:04]} 34. Ne2 {[%emt 0:00:05]} Nxe2 {[%emt 0:02:34]} 35. Kxe2 {[%emt 0:01:06]} Rc3 {[%emt 0:02:02]} 36. Kd2 {[%emt 0:00:18]} Rac5 {[%emt 0:00:46]} 37. Re2 {[%emt 0:02:54]} Ra3 {[%emt 0:02:05]} 38. Rxc2 {[%emt 0:01:19]} Rxc2+ {[%emt 0:00:04]} 39. Kxc2 {[%emt 0:00:01]} Rxa2+ {[%emt 0:00:08]} 40. Kd1 {[%emt 0:00:00]} Ra3 {[%emt 0:00:00]} 41. f4 {[%emt 0:02:20]} a5 {[%emt 0:10:06]} 42. Ke1 {[%emt 0:06:35]} Rf3 {[%emt 0:01:30]} 43. f5 {[%emt 0:01:03]} a4 {[%emt 0:03:03]} 44. Rc2 {[%emt 0:04:24]} exf5 {[%emt 0:09:53]} 45. exf5 {[%emt 0:03:22]} Kg7 {[%emt 0:01:30]} 46. Rc6 {[%emt 0:02:41]} Rf4 {[%emt 0:02:34]} 47. Ke2 {[%emt 0:06:14]} Rxg4 {[%emt 0:00:25]} 48. Kf3 {[%emt 0:00:04]} Rg5 {[%emt 0:03:44]} 49. Ra6 {[%emt 0:00:43]} Rxf5+ {[%emt 0:00:07]} 50. Kg3 {[%emt 0:00:01]} Rg5+ {[%emt 0:00:17]} 51. Kf3 {[%emt 0:00:11]} f6 {[%emt 0:00:36]} 52. Rxa4 {[%emt 0:00:05]} Kg6 {[%emt 0:00:04]} 53. Ra7 {[%emt 0:00:41]} Rb5 {[%emt 0:00:14]} 54. Kg3 {[%emt 0:02:32]} Rb3+ {[%emt 0:00:16]} 55. Kf2 {[%emt 0:00:29]} h5 {[%emt 0:00:51]} 56. Kg2 {[%emt 0:00:31]} Kg5 {[%emt 0:00:33]} 57. Ra4 {[%emt 0:02:50]} Re3 {[%emt 0:00:29]} 58. Kf2 {[%emt 0:00:21]} Rh3 {[%emt 0:00:09]} 59. Kg2 {[%emt 0:00:04]} Rh4 {[%emt 0:00:04]} 60. Ra5+ {[%emt 0:01:13]} f5 {[%emt 0:00:10]} 61. Ra8 {[%emt 0:00:10]} Rb4 {[%emt 0:00:12]} 62. Ra7 {[%emt 0:04:09]} Rb2+ {[%emt 0:00:27]} 63. Kg1 {[%emt 0:01:12]} Kg4 {[%emt 0:00:44]} 64. Ra3 {[%emt 0:00:11]} Re2 {[%emt 0:02:22]} 65. Rg3+ {[%emt 0:01:05]} Kh4 {[%emt 0:00:48]} 66. Rf3 {[%emt 0:00:51]} Kg4 {[%emt 0:00:36]} 67. Rg3+ {[%emt 0:00:02]} Kf4 {[%emt 0:00:02]} 68. Rh3 {[%emt 0:00:13]} Re3 {[%emt 0:00:28]} 69. Rxh5 {[%emt 0:00:51]} Kg4 {[%emt 0:00:05]} 70. Rh8 {[%emt 0:00:23]} Ra3 {[%emt 0:00:06]} 71. Kf1 {[%emt 0:01:26]} Ra1+ {[%emt 0:00:59]} 72. Kf2 {[%emt 0:00:07]} Ra2+ {[%emt 0:00:07]} 73. Kf1 {[%emt 0:00:04]} f4 {[%emt 0:00:30]} 74. Rh7 {[%emt 0:00:27]} Kf3 {[%emt 0:00:35]} 75. Rh3+ {[%emt 0:00:04]} Ke4 {[%emt 0:00:02]} 76. Ke1 {[%emt 0:01:03]} Rg2 {[%emt 0:00:22]} 77. Kf1 {[%emt 0:00:16]} 1/2-1/2

[Event "2nd Irena Warakomska Memorial-A"]
[Site "Suwalki"]
[Date "2018.08.06"]
[Round "7"]
[White "Marszalek, Maciej"]
[Black "Jankowiak, Tomasz"]
[Result "1-0"]
[ECO "A06"]
[WhiteElo "2269"]
[BlackElo "2117"]
[Annotator "NA"]
[PlyCount "81"]
[EventDate "2018.08.01"]
[EventType "swiss"]
[EventCountry "POL"]
[SourceTitle "playchess.com"]
[Source "ChessBase"]
[SourceQuality "1"]
[TimeControl "40/5400+30:1800+30"]

1. Nf3 {[%emt 0:00:00]} d5 {[%emt 0:00:00]} 2. c4 {[%emt 0:00:00]} c6 {[%emt 0:00:00]} 3. d4 {[%emt 0:00:19]} Nf6 {[%emt 0:00:00]} 4. Qb3 {[%emt 0:00:22]} e6 {[%emt 0:03:27]} 5. g3 {[%emt 0:00:37]} Ne4 {[%emt 0:11:03]} 6. Bg2 {[%emt 0:02:53]} Qa5+ {[%emt 0:12:31]} 7. Nbd2 {[%emt 0:02:01]} Bb4 {[%emt 0:02:07]} 8. Qc2 {[%emt 0:01:41]} O-O {[%emt 0:01:53]} 9. O-O {[%emt 0:03:00]} f5 {[%emt 0:11:34]} 10. Nb3 {[%emt 0:05:00]} Qa4 {[%emt 0:01:08]} 11. c5 {[%emt 0:05:55]} Ba5 {[%emt 0:05:40]} 12. Bf4 {[%emt 0:02:17]} Bd8 {[%emt 0:00:48]} 13. Nfd2 {[%emt 0:03:16]} Nxd2 {[%emt 0:05:31]} 14. Qxd2 {[%emt 0:00:40]} Nd7 {[%emt 0:00:20]} 15. f3 {[%emt 0:02:21]} Bf6 {[%emt 0:02:37]} 16. Bd6 {[%emt 0:03:00]} Re8 {[%emt 0:03:59]} 17. e4 {[%emt 0:01:24]} b6 {[%emt 0:01:21]} 18. e5 {[%emt 0:07:41]} Bd8 {[%emt 0:00:18]} 19. f4 {[%emt 0:01:09]} Ba6 {[%emt 0:01:29]} 20. Rfd1 {[%emt 0:00:23]} Kf7 {[%emt 0:10:00]} 21. Nc1 {[%emt 0:01:09]} Be7 {[%emt 0:01:49]} 22. Bxe7 {[%emt 0:06:30]} Kxe7 {[%emt 0:01:07]} 23. cxb6 {[%emt 0:01:18]} axb6 {[%emt 0:00:15]} 24. Ne2 {[%emt 0:00:38]} Bxe2 {[%emt 0:01:30]} 25. Qxe2 {[%emt 0:00:02]} g6 {[%emt 0:02:50]} 26. g4 {[%emt 0:01:01]} Rg8 {[%emt 0:08:06]} 27. Qf2 {[%emt 0:00:12]} Kf7 {[%emt 0:01:44]} 28. Rd3 {[%emt 0:05:53]} Qc4 {[%emt 0:04:44]} 29. Rc3 {[%emt 0:01:39]} Rxa2 {[%emt 0:00:23]} 30. Rxa2 {[%emt 0:04:20]} Qxa2 {[%emt 0:00:01]} 31. Rxc6 {[%emt 0:00:11]} Qb1+ {[%emt 0:01:59]} 32. Bf1 {[%emt 0:00:05]} fxg4 {[%emt 0:02:30]} 33. Rc7 {[%emt 0:00:22]} Ke8 {[%emt 0:00:03]} 34. Qd2 {[%emt 0:03:47]} Rf8 {[%emt 0:01:25]} 35. Rc1 {[%emt 0:01:40]} Qe4 {[%emt 0:00:49]} 36. Bb5 {[%emt 0:02:20]} Kd8 {[%emt 0:00:00]} 37. Qc3 {[%emt 0:00:56]} Ke7 {[%emt 0:01:50]} 38. Bxd7 {[%emt 0:02:34]} Kxd7 {[%emt 0:00:28]} 39. Qc6+ {[%emt 0:04:01]} Ke7 {[%emt 0:00:19]} 40. Qb7+ {[%emt 0:00:00]} Ke8 {[%emt 0:00:00]} 41. Rc8# {[%emt 0:00:12]} 1-0

[Event "2nd Irena Warakomska Memorial-A"]
[Site "Suwalki"]
[Date "2018.08.06"]
[Round "7"]
[White "Bugalski, Michal"]
[Black "Grebeniuk, Semen"]
[Result "1/2-1/2"]
[ECO "B06"]
[WhiteElo "2263"]
[BlackElo "2306"]
[Annotator "NA"]
[PlyCount "103"]
[EventDate "2018.08.01"]
[EventType "swiss"]
[EventCountry "POL"]
[SourceTitle "playchess.com"]
[Source "ChessBase"]
[SourceQuality "1"]
[TimeControl "40/5400+30:1800+30"]

1. e4 {[%emt 0:00:00]} g6 {[%emt 0:00:00]} 2. d4 {[%emt 0:00:23]} Bg7 {[%emt 0:00:02]} 3. Nc3 {[%emt 0:00:08]} c6 {[%emt 0:00:22]} 4. Be3 {[%emt 0:01:18]} d5 {[%emt 0:00:40]} 5. e5 {[%emt 0:00:23]} Nh6 {[%emt 0:01:14]} 6. Qd2 {[%emt 0:06:53]} Nf5 {[%emt 0:05:27]} 7. Bf4 {[%emt 0:00:15]} f6 {[%emt 0:15:29]} 8. exf6 {[%emt 0:07:02]} exf6 {[%emt 0:06:28]} 9. h4 {[%emt 0:01:16]} O-O {[%emt 0:01:37]} 10. O-O-O {[%emt 0:02:24]} Re8 {[%emt 0:01:55]} 11. Kb1 {[%emt 0:05:51]} Be6 {[%emt 0:05:52]} 12. g4 {[%emt 0:13:34]} Nd6 {[%emt 0:00:38]} 13. f3 {[%emt 0:00:41]} b5 {[%emt 0:08:34]} 14. h5 {[%emt 0:16:30]} g5 {[%emt 0:00:59]} 15. Bxd6 {[%emt 0:01:41]} Qxd6 {[%emt 0:00:08]} 16. h6 {[%emt 0:00:04]} Bf8 {[%emt 0:00:09]} 17. Nh3 {[%emt 0:04:00]} Nd7 {[%emt 0:07:38]} 18. Bd3 {[%emt 0:01:57]} Be7 {[%emt 0:02:49]} 19. Rdg1 {[%emt 0:05:52]} Kh8 {[%emt 0:02:31]} 20. Ne2 {[%emt 0:06:23]} Rg8 {[%emt 0:06:07]} 21. Ng3 {[%emt 0:02:01]} Nf8 {[%emt 0:03:42]} 22. Nh5 {[%emt 0:05:04]} Ng6 {[%emt 0:01:41]} 23. Re1 {[%emt 0:08:13]} Bd7 {[%emt 0:02:09]} 24. Bf5 {[%emt 0:00:07]} Raf8 {[%emt 0:11:58]} 25. Qe2 {[%emt 0:04:37]} Rf7 {[%emt 0:04:04]} 26. Ng7 {[%emt 0:01:10]} Nh4 {[%emt 0:04:34]} 27. Bxd7 {[%emt 0:02:49]} Qxd7 {[%emt 0:00:07]} 28. f4 {[%emt 0:00:01]} Bf8 {[%emt 0:02:15]} 29. Ne6 {[%emt 0:02:02]} gxf4 {[%emt 0:02:36]} 30. Nhxf4 {[%emt 0:00:50]} Ng6 {[%emt 0:00:01]} 31. Nd3 {[%emt 0:00:41]} Bd6 {[%emt 0:00:28]} 32. Qf3 {[%emt 0:00:51]} Nf8 {[%emt 0:01:09]} 33. Ng7 {[%emt 0:00:23]} Ng6 {[%emt 0:00:45]} 34. Re2 {[%emt 0:00:54]} Bf8 {[%emt 0:00:28]} 35. Ne6 {[%emt 0:00:09]} Bd6 {[%emt 0:00:27]} 36. Rhe1 {[%emt 0:00:29]} Bf8 {[%emt 0:01:07]} 37. Rh1 {[%emt 0:00:23]} Bd6 {[%emt 0:00:48]} 38. Ng7 {[%emt 0:00:24]} Bf8 {[%emt 0:00:17]} 39. Nf5 {[%emt 0:00:30]} a5 {[%emt 0:01:25]} 40. Rhe1 {[%emt 0:00:00]} a4 {[%emt 0:00:00]} 41. Re6 {[%emt 0:12:13]} a3 {[%emt 0:02:50]} 42. b4 {[%emt 0:01:17]} Ne5 {[%emt 0:07:36]} 43. R6xe5 {[%emt 0:02:19]} fxe5 {[%emt 0:00:08]} 44. Nxe5 {[%emt 0:00:04]} Rxf5 {[%emt 0:04:56]} 45. gxf5 {[%emt 0:03:38]} Qe7 {[%emt 0:00:36]} 46. c3 {[%emt 0:00:40]} Qf6 {[%emt 0:01:41]} 47. Qh5 {[%emt 0:06:37]} Rg2 {[%emt 0:02:07]} 48. Ng4 {[%emt 0:04:38]} Qd6 {[%emt 0:01:27]} 49. Ne5 {[%emt 0:00:35]} Qf6 {[%emt 0:00:22]} 50. Ng4 {[%emt 0:03:23]} Qd6 {[%emt 0:00:01]} 51. Ne5 {[%emt 0:00:07]} Qf6 {[%emt 0:00:42]} 52. Ng4 {[%emt 0:00:06]} 1/2-1/2

[Event "2nd Irena Warakomska Memorial-A"]
[Site "Suwalki"]
[Date "2018.08.06"]
[Round "7"]
[White "Tomaszewski, Roman"]
[Black "Tarun, V Kanth"]
[Result "0-1"]
[ECO "D37"]
[WhiteElo "2258"]
[BlackElo "2102"]
[Annotator "NA"]
[PlyCount "53"]
[EventDate "2018.08.01"]
[EventType "swiss"]
[EventCountry "POL"]
[SourceTitle "playchess.com"]
[Source "ChessBase"]
[SourceQuality "1"]
[TimeControl "40/5400+30:1800+30"]

1. d4 {[%emt 0:00:00]} Nf6 {[%emt 0:00:00]} 2. c4 {[%emt 0:00:00]} e6 {[%emt 0:00:00]} 3. Nc3 {[%emt 0:00:39]} d5 {[%emt 0:00:00]} 4. Nf3 {[%emt 0:01:39]} Be7 {[%emt 0:00:00]} 5. Bf4 {[%emt 0:00:11]} O-O {[%emt 0:00:05]} 6. e3 {[%emt 0:00:05]} c5 {[%emt 0:00:05]} 7. dxc5 {[%emt 0:00:16]} Bxc5 {[%emt 0:00:08]} 8. cxd5 {[%emt 0:02:08]} Nxd5 {[%emt 0:00:27]} 9. Nxd5 {[%emt 0:00:36]} exd5 {[%emt 0:01:08]} 10. Bd3 {[%emt 0:00:13]} Bb4+ {[%emt 0:03:11]} 11. Ke2 {[%emt 0:00:21]} Nc6 {[%emt 0:02:02]} 12. Qc2 {[%emt 0:01:22]} h6 {[%emt 0:03:23]} 13. Rhd1 {[%emt 0:06:16]} Bg4 {[%emt 0:06:17]} 14. Bh7+ {[%emt 0:10:42]} Kh8 {[%emt 0:00:01]} 15. Bf5 {[%emt 0:00:08]} Bxf3+ {[%emt 0:13:01]} 16. Kxf3 {[%emt 0:54:40]} g6 {[%emt 0:12:28]} 17. a3 {[%emt 0:06:29]} Ba5 {[%emt 0:05:28]} 18. b4 {[%emt 0:00:50]} Bc7 {[%emt 0:19:13]} 19. Qb2+ {[%emt 0:08:25]} Kh7 {[%emt 0:06:53]} 20. b5 {[%emt 0:00:10]} Bxf4 {[%emt 0:02:36]} 21. bxc6 {[%emt 0:00:06]} bxc6 {[%emt 0:00:03]} 22. Bh3 {[%emt 0:02:19]} Bg5 {[%emt 0:00:32]} 23. Rab1 {[%emt 0:01:48]} Be7 {[%emt 0:02:22]} 24. Qb7 {[%emt 0:00:32]} Qd6 {[%emt 0:02:56]} 25. g3 {[%emt 0:01:15]} Rfd8 {[%emt 0:05:27]} 26. Rd3 {[%emt 0:01:01]} Rdb8 {[%emt 0:01:14]} 27. Rdd1 0-1

[Event "2nd Irena Warakomska Memorial-A"]
[Site "Suwalki"]
[Date "2018.08.06"]
[Round "7"]
[White "Sowul, Bartosz"]
[Black "Fiedorek, Michal"]
[Result "0-1"]
[ECO "E61"]
[WhiteElo "2257"]
[BlackElo "1970"]
[Annotator "NA"]
[PlyCount "78"]
[EventDate "2018.08.01"]
[EventType "swiss"]
[EventCountry "POL"]
[SourceTitle "playchess.com"]
[Source "ChessBase"]
[SourceQuality "1"]
[TimeControl "40/5400+30:1800+30"]

1. d4 {[%emt 0:00:00]} Nf6 {[%emt 0:00:00]} 2. c4 {[%emt 0:00:00]} g6 {[%emt 0:00:00]} 3. Nc3 {[%emt 0:00:00]} Bg7 {[%emt 0:00:00]} 4. Nf3 {[%emt 0:00:00]} O-O {[%emt 0:00:17]} 5. Bg5 {[%emt 0:00:00]} d6 {[%emt 0:01:00]} 6. e3 {[%emt 0:00:00]} Nbd7 {[%emt 0:01:06]} 7. Be2 {[%emt 0:00:08]} c6 {[%emt 0:10:55]} 8. O-O {[%emt 0:00:08]} Qc7 {[%emt 0:04:14]} 9. Rc1 {[%emt 0:00:18]} e5 {[%emt 0:00:54]} 10. Qc2 {[%emt 0:02:28]} Re8 {[%emt 0:03:49]} 11. Rfd1 {[%emt 0:00:33]} Nf8 {[%emt 0:04:39]} 12. dxe5 {[%emt 0:01:51]} dxe5 {[%emt 0:01:48]} 13. Bh4 {[%emt 0:00:12]} Bf5 {[%emt 0:07:16]} 14. Qa4 {[%emt 0:01:09]} N8d7 {[%emt 0:05:48]} 15. Bg3 {[%emt 0:07:14]} Bf8 {[%emt 0:08:10]} 16. b4 {[%emt 0:23:01]} a5 {[%emt 0:01:00]} 17. c5 {[%emt 0:00:06]} axb4 {[%emt 0:00:46]} 18. Qxb4 {[%emt 0:00:06]} Bxc5 {[%emt 0:04:05]} 19. Qb3 {[%emt 0:00:12]} Qb6 {[%emt 0:11:00]} 20. Qxb6 {[%emt 0:03:51]} Bxb6 {[%emt 0:01:43]} 21. Bc4 {[%emt 0:00:09]} Kg7 {[%emt 0:03:44]} 22. Ng5 {[%emt 0:01:38]} Re7 {[%emt 0:01:21]} 23. h3 {[%emt 0:07:12]} h6 {[%emt 0:01:16]} 24. Nf3 {[%emt 0:00:06]} Be6 {[%emt 0:02:25]} 25. Nd2 {[%emt 0:03:37]} Ba5 {[%emt 0:05:23]} 26. Bxe6 {[%emt 0:03:11]} Rxe6 {[%emt 0:00:19]} 27. Nde4 {[%emt 0:00:28]} Nxe4 {[%emt 0:08:38]} 28. Nxe4 {[%emt 0:00:06]} Nf6 {[%emt 0:01:34]} 29. Nd6 {[%emt 0:03:42]} Re7 {[%emt 0:02:30]} 30. a4 {[%emt 0:01:27]} Nd5 {[%emt 0:02:46]} 31. Nc4 {[%emt 0:01:30]} Bc7 {[%emt 0:01:11]} 32. a5 {[%emt 0:03:48]} f6 {[%emt 0:01:29]} 33. Ra1 {[%emt 0:00:59]} Kf7 {[%emt 0:00:36]} 34. Rdb1 {[%emt 0:00:58]} Ra7 {[%emt 0:00:22]} 35. f3 {[%emt 0:00:53]} Nc3 {[%emt 0:01:09]} 36. Rb2 {[%emt 0:00:33]} b5 {[%emt 0:00:56]} 37. Be1 {[%emt 0:00:35]} Nd5 {[%emt 0:01:53]} 38. Na3 {[%emt 0:01:00]} e4 {[%emt 0:00:59]} 39. Nc2 {[%emt 0:00:00]} Be5 {[%emt 0:00:00]} 0-1